[Event "36th German Seniors-ch-65 2024"]
[Site "Bad Wildungen"]
[Date "2024.08.25"]
[Round "1.9"]
[White "Vatter, Hans-Joachim"]
[Black "Schaefer, Ruediger"]
[Result "1-0"]
[ECO "B13"]
[WhiteElo "2212"]
[BlackElo "1902"]
[Annotator "RC"]
[PlyCount "61"]
[EventDate "2024.08.22"]
[EventType "swiss"]
[EventCountry "GER"]
[SourceTitle "playchess.com"]
[Source "ChessBase"]
[SourceQuality "1"]
[TimeControl "40/5400+30:1800+30"]

1. e4 {[%emt 0:00:07]} c6 {[%emt 0:00:12]} 2. d4 {[%emt 0:02:11]} d5 {[%emt 0:00:11]} 3. exd5 {[%emt 0:00:11]} cxd5 {[%emt 0:00:11]} 4. Bd3 {[%emt 0:00:09]} Nf6 {[%emt 0:01:09]} 5. h3 {[%emt 0:01:51]} g6 {[%emt 0:02:44]} 6. Nf3 {[%emt 0:00:55]} Bg7 {[%emt 0:00:23]} 7. Bf4 {[%emt 0:00:51]} Nc6 {[%emt 0:04:28]} 8. c3 {[%emt 0:02:02]} Qb6 {[%emt 0:07:10]} 9. Qb3 {[%emt 0:02:45]} Qxb3 {[%emt 0:09:56]} 10. axb3 {[%emt 0:00:21]} O-O {[%emt 0:01:36]} 11. b4 {[%emt 0:01:45]} Bf5 {[%emt 0:01:32]} 12. Bxf5 {[%emt 0:03:08]} gxf5 {[%emt 0:00:02]} 13. b5 {[%emt 0:01:30]} Nd8 {[%emt 0:00:49]} 14. Nbd2 {[%emt 0:05:55]} Ne6 {[%emt 0:05:30]} 15. Be5 {[%emt 0:13:24]} Nd7 {[%emt 0:02:54]} 16. Bh2 {[%emt 0:07:57]} Bf6 {[%emt 0:08:37]} 17. O-O {[%emt 0:06:17]} a6 {[%emt 0:03:30]} 18. Ra5 {[%emt 0:01:42]} Nb6 {[%emt 0:03:16]} 19. Ne5 {[%emt 0:03:51]} axb5 {[%emt 0:01:34]} 20. Rxb5 {[%emt 0:00:19]} Ra6 {[%emt 0:00:18]} 21. Nd3 {[%emt 0:00:24]} Nc4 {[%emt 0:14:16]} 22. Nxc4 {[%emt 0:03:08]} dxc4 {[%emt 0:00:09]} 23. Nb4 {[%emt 0:00:04]} Ra7 {[%emt 0:03:16]} 24. Rxf5 {[%emt 0:03:55]} Rfa8 {[%emt 0:00:41]} 25. Rb5 {[%emt 0:04:40]} Nd8 {[%emt 0:10:53]} 26. Rc5 {[%emt 0:03:06]} Ne6 {[%emt 0:00:52]} 27. Rxc4 {[%emt 0:01:19]} b5 {[%emt 0:02:08]} 28. Rc6 {[%emt 0:00:24]} Ra1 {[%emt 0:00:08]} 29. d5 {[%emt 0:17:15]} Rxf1+ {[%emt 0:08:05]} 30. Kxf1 {[%emt 0:00:30]} Nf8 {[%emt 0:00:07]} 31. Rb6 {[%emt 0:03:04]} 1-0

[Event "36th German Seniors-ch-65 2024"]
[Site "Bad Wildungen"]
[Date "2024.08.25"]
[Round "1.10"]
[White "Fleischer, Matthias"]
[Black "Koehler, Gerhard"]
[Result "1/2-1/2"]
[ECO "A48"]
[WhiteElo "1899"]
[BlackElo "2210"]
[Annotator "RC"]
[PlyCount "133"]
[EventDate "2024.08.22"]
[EventType "swiss"]
[EventCountry "GER"]
[SourceTitle "playchess.com"]
[Source "ChessBase"]
[SourceQuality "1"]
[TimeControl "40/5400+30:1800+30"]

1. d4 {[%emt 0:00:24]} Nf6 {[%emt 0:00:47]} 2. e3 {[%emt 0:00:30]} g6 {[%emt 0:00:50]} 3. Nf3 {[%emt 0:00:14]} Bg7 {[%emt 0:00:13]} 4. Bd3 {[%emt 0:00:28]} d6 {[%emt 0:00:24]} 5. Nbd2 {[%emt 0:00:40]} O-O {[%emt 0:02:25]} 6. O-O {[%emt 0:00:15]} Nc6 {[%emt 0:01:33]} 7. c3 {[%emt 0:00:20]} Re8 {[%emt 0:03:22]} 8. Qc2 {[%emt 0:01:07]} e5 {[%emt 0:01:52]} 9. dxe5 {[%emt 0:01:10]} Nxe5 {[%emt 0:00:34]} 10. Nxe5 {[%emt 0:00:17]} Rxe5 {[%emt 0:00:17]} 11. Re1 {[%emt 0:04:47]} Bd7 {[%emt 0:05:54]} 12. Nf1 {[%emt 0:00:29]} Bc6 {[%emt 0:01:40]} 13. Ng3 {[%emt 0:01:03]} a5 {[%emt 0:01:32]} 14. a4 {[%emt 0:00:53]} Nd7 {[%emt 0:03:02]} 15. Be4 {[%emt 0:08:30]} d5 {[%emt 0:05:46]} 16. Bf3 {[%emt 0:01:06]} Nb6 {[%emt 0:11:21]} 17. b3 {[%emt 0:02:41]} Qe8 {[%emt 0:02:26]} 18. Bb2 {[%emt 0:01:28]} Re7 {[%emt 0:00:26]} 19. Rad1 {[%emt 0:01:42]} Rd8 {[%emt 0:00:15]} 20. Ba3 {[%emt 0:01:41]} Re5 {[%emt 0:09:32]} 21. Rc1 {[%emt 0:07:08]} Nc8 {[%emt 0:11:25]} 22. Bc5 {[%emt 0:04:15]} Nd6 {[%emt 0:06:30]} 23. Bd4 {[%emt 0:01:50]} Re6 {[%emt 0:02:14]} 24. Bxg7 {[%emt 0:00:52]} Kxg7 {[%emt 0:00:02]} 25. Red1 {[%emt 0:00:59]} Ne4 {[%emt 0:08:42]} 26. Bxe4 {[%emt 0:08:45]} dxe4 {[%emt 0:00:11]} 27. Rxd8 {[%emt 0:00:36]} Qxd8 {[%emt 0:00:02]} 28. Rd1 {[%emt 0:00:15]} Rd6 {[%emt 0:00:22]} 29. Rxd6 {[%emt 0:02:47]} Qxd6 {[%emt 0:00:06]} 30. h3 {[%emt 0:01:42]} Qd5 {[%emt 0:05:00]} 31. Nf1 {[%emt 0:04:33]} g5 {[%emt 0:01:30]} 32. Nd2 {[%emt 0:01:57]} h5 {[%emt 0:00:30]} 33. Qb2 {[%emt 0:01:45]} f6 {[%emt 0:03:00]} 34. g3 {[%emt 0:01:00]} h4 {[%emt 0:00:21]} 35. Kg2 {[%emt 0:01:41]} Qd3 {[%emt 0:01:52]} 36. c4 {[%emt 0:01:31]} hxg3 {[%emt 0:00:50]} 37. Kxg3 {[%emt 0:00:25]} Qd6+ {[%emt 0:00:18]} 38. Kg2 {[%emt 0:00:30]} Qe6 {[%emt 0:01:16]} 39. Qd4 {[%emt 0:02:20]} Bd7 {[%emt 0:02:20]} 40. Nxe4 {[%emt 0:11:21]} Qxh3+ {[%emt 0:00:16]} 41. Kg1 {[%emt 0:31:43]} Qf5 {[%emt 0:30:22]} 42. Nxf6 {[%emt 0:01:13]} Bc6 {[%emt 0:05:43]} 43. Nd5+ {[%emt 0:02:18]} Kf7 {[%emt 0:00:18]} 44. e4 {[%emt 0:01:08]} Qg4+ {[%emt 0:04:01]} 45. Kf1 {[%emt 0:00:23]} Bxd5 {[%emt 0:00:23]} 46. Qxd5+ {[%emt 0:01:08]} Kg6 {[%emt 0:00:00]} 47. Qd3 {[%emt 0:00:00]} Kf6 {[%emt 0:00:00]} 48. Qd8+ {[%emt 0:00:00]} Kg6 {[%emt 0:00:00]} 49. Qd3 {[%emt 0:00:00]} Kf6 {[%emt 0:00:00]} 50. f3 {[%emt 0:00:00]} Qf4 {[%emt 0:00:00]} 51. Ke2 {[%emt 0:00:00]} Qh2+ {[%emt 0:00:00]} 52. Kd1 {[%emt 0:00:00]} c6 {[%emt 0:00:00]} 53. Qd8+ {[%emt 0:00:00]} Kg6 {[%emt 0:00:00]} 54. Qg8+ {[%emt 0:00:00]} Kf6 {[%emt 0:00:00]} 55. Qf8+ {[%emt 0:00:00]} Kg6 {[%emt 0:00:00]} 56. Qf5+ {[%emt 0:00:00]} Kh6 {[%emt 0:00:00]} 57. e5 {[%emt 0:00:00]} Qh1+ {[%emt 0:00:00]} 58. Ke2 {[%emt 0:00:00]} Qg2+ {[%emt 0:00:00]} 59. Kd1 {[%emt 0:00:00]} Qf1+ {[%emt 0:00:00]} 60. Kc2 {[%emt 0:00:00]} Qf2+ {[%emt 0:00:00]} 61. Kb1 {[%emt 0:00:00]} Qe1+ {[%emt 0:00:00]} 62. Kb2 {[%emt 0:00:00]} Qd2+ {[%emt 0:00:00]} 63. Qc2 {[%emt 0:00:00]} Qe1 {[%emt 0:00:00]} 64. Qc3 {[%emt 0:00:00]} Qe2+ {[%emt 0:00:00]} 65. Ka3 {[%emt 0:29:10]} b6 {[%emt 0:11:15]} 66. c5 {[%emt 0:00:00]} bxc5 {[%emt 0:00:00]} 67. Qxc5 {[%emt 0:00:00]} 1/2-1/2

[Event "36th German Seniors-ch-65 2024"]
[Site "Bad Wildungen"]
[Date "2024.08.25"]
[Round "1.11"]
[White "Behrens, Harald"]
[Black "Leisen, Peter"]
[Result "1-0"]
[ECO "A55"]
[WhiteElo "2206"]
[BlackElo "1897"]
[Annotator "ChessBase"]
[PlyCount "102"]
[EventDate "2024.08.22"]
[EventType "swiss"]
[EventCountry "GER"]
[SourceTitle "playchess.com"]
[Source "ChessBase"]
[SourceQuality "1"]
[TimeControl "40/5400+30:1800+30"]

1. d4 {[%emt 0:00:06]} d6 {[%emt 0:00:04]} 2. Nf3 {[%emt 0:00:16]} Nd7 {[%emt 0:00:06]} 3. g3 {[%emt 0:00:56]} e5 {[%emt 0:00:15]} 4. Bg2 {[%emt 0:00:54]} Be7 {[%emt 0:01:05]} 5. c4 {[%emt 0:01:06]} Ngf6 {[%emt 0:00:40]} 6. Nc3 {[%emt 0:00:36]} c6 {[%emt 0:01:01]} 7. O-O {[%emt 0:01:07]} O-O {[%emt 0:00:05]} 8. e4 {[%emt 0:03:32]} a6 {[%emt 0:01:30]} 9. h3 {[%emt 0:07:15]} Re8 {[%emt 0:00:48]} 10. Be3 {[%emt 0:01:13]} Bf8 {[%emt 0:01:37]} 11. Qc2 {[%emt 0:04:26]} Rb8 {[%emt 0:09:06]} 12. Rfd1 {[%emt 0:03:18]} Qc7 {[%emt 0:05:17]} 13. Rac1 {[%emt 0:00:21]} b6 {[%emt 0:07:32]} 14. a3 {[%emt 0:03:21]} Bb7 {[%emt 0:01:02]} 15. Rd2 {[%emt 0:05:23]} Rbd8 {[%emt 0:08:07]} 16. dxe5 {[%emt 0:06:42]} dxe5 {[%emt 0:03:03]} 17. b4 {[%emt 0:58:28]} a5 {[%emt 0:10:17]} 18. Qb1 {[%emt 0:00:00]} h6 {[%emt 0:09:32]} 19. Rb2 {[%emt 0:01:00]} axb4 {[%emt 0:03:27]} 20. axb4 {[%emt 0:00:00]} Ra8 {[%emt 0:04:37]} 21. Bf1 {[%emt 0:00:00]} Nb8 {[%emt 0:05:46]} 22. Nd2 {[%emt 0:00:00]} Rd8 {[%emt 0:05:07]} 23. Rcc2 {[%emt 0:00:00]} Nbd7 {[%emt 0:02:31]} 24. b5 {[%emt 0:00:00]} Ra3 {[%emt 0:19:55]} 25. Ra2 {[%emt 0:00:00]} Rda8 {[%emt 0:00:00]} 26. bxc6 {[%emt 0:00:00]} Bxc6 {[%emt 0:00:00]} 27. Nd5 {[%emt 0:00:00]} Qb7 {[%emt 0:00:00]} 28. Rxa3 {[%emt 0:00:00]} Rxa3 {[%emt 0:00:00]} 29. Rb2 {[%emt 0:00:00]} Bxd5 {[%emt 0:00:00]} 30. cxd5 {[%emt 0:05:30]} Qa7 {[%emt 0:00:00]} 31. Nc4 {[%emt 0:00:00]} Ra1 {[%emt 0:00:00]} 32. Qc2 {[%emt 0:00:00]} Bc5 {[%emt 0:00:00]} 33. Bxc5 {[%emt 0:00:00]} bxc5 {[%emt 0:00:00]} 34. Kg2 {[%emt 0:00:00]} Qa4 {[%emt 0:00:00]} 35. Qxa4 {[%emt 0:00:00]} Rxa4 {[%emt 0:00:00]} 36. f3 {[%emt 0:00:00]} Kf8 {[%emt 0:01:03]} 37. Bd3 {[%emt 0:00:00]} Ra7 {[%emt 0:00:25]} 38. f4 {[%emt 0:00:00]} exf4 {[%emt 0:00:47]} 39. gxf4 {[%emt 0:00:00]} g5 {[%emt 0:01:43]} 40. Kf3 {[%emt 0:00:00]} Ke7 {[%emt 0:02:56]} 41. d6+ {[%emt 0:32:36]} Kf8 {[%emt 0:03:20]} 42. e5 {[%emt 0:00:00]} Nd5 {[%emt 0:04:38]} 43. f5 {[%emt 0:00:00]} Nb4 {[%emt 0:03:37]} 44. Be4 {[%emt 0:00:00]} h5 {[%emt 0:04:52]} 45. e6 {[%emt 0:00:00]} fxe6 {[%emt 0:01:31]} 46. fxe6 {[%emt 0:00:00]} g4+ {[%emt 0:01:21]} 47. hxg4 {[%emt 0:00:00]} hxg4+ {[%emt 0:00:02]} 48. Kxg4 {[%emt 0:00:00]} Nf6+ {[%emt 0:00:47]} 49. Kf5 {[%emt 0:00:00]} Nxe4 {[%emt 0:00:02]} 50. Kxe4 {[%emt 0:00:00]} Nc6 {[%emt 0:05:22]} 51. Rb6 {[%emt 0:00:00]} Ke8 {[%emt 0:11:04]} 1-0

[Event "36th German Seniors-ch-65 2024"]
[Site "Bad Wildungen"]
[Date "2024.08.25"]
[Round "1.12"]
[White "Josting, Friedel"]
[Black "Okrajek, Alexander"]
[Result "1-0"]
[ECO "A49"]
[WhiteElo "1896"]
[BlackElo "2172"]
[Annotator "RC"]
[PlyCount "96"]
[EventDate "2024.08.22"]
[EventType "swiss"]
[EventCountry "GER"]
[SourceTitle "playchess.com"]
[Source "ChessBase"]
[SourceQuality "1"]
[TimeControl "40/5400+30:1800+30"]

1. d4 {[%emt 0:03:37]} Nf6 {[%emt 0:00:18]} 2. Nf3 {[%emt 0:00:24]} g6 {[%emt 0:00:47]} 3. g3 {[%emt 0:00:54]} Bg7 {[%emt 0:02:01]} 4. Bg2 {[%emt 0:00:20]} O-O {[%emt 0:01:02]} 5. O-O {[%emt 0:00:20]} d6 {[%emt 0:00:51]} 6. Re1 {[%emt 0:02:05]} Nbd7 {[%emt 0:03:21]} 7. Nbd2 {[%emt 0:02:29]} e5 {[%emt 0:02:35]} 8. Nf1 {[%emt 0:02:11]} c6 {[%emt 0:06:48]} 9. c3 {[%emt 0:04:16]} e4 {[%emt 0:03:08]} 10. N3d2 {[%emt 0:01:25]} Re8 {[%emt 0:03:23]} 11. Nc4 {[%emt 0:02:57]} Nb6 {[%emt 0:01:36]} 12. Nfe3 {[%emt 0:03:07]} Be6 {[%emt 0:05:33]} 13. b3 {[%emt 0:02:57]} Qd7 {[%emt 0:07:48]} 14. Ba3 {[%emt 0:02:07]} Nxc4 {[%emt 0:05:38]} 15. Nxc4 {[%emt 0:02:29]} Bf8 {[%emt 0:04:56]} 16. Bc1 {[%emt 0:04:54]} Bh3 {[%emt 0:05:01]} 17. Bg5 {[%emt 1:02:28]} Nd5 {[%emt 0:02:16]} 18. Qc2 {[%emt 0:00:00]} Qg4 {[%emt 0:06:18]} 19. Bd2 {[%emt 0:00:00]} Bxg2 {[%emt 0:04:25]} 20. Kxg2 {[%emt 0:00:00]} h5 {[%emt 0:00:02]} 21. Ne3 {[%emt 0:00:00]} Nxe3+ {[%emt 0:02:27]} 22. Bxe3 {[%emt 0:00:00]} d5 {[%emt 0:00:00]} 23. Qd2 {[%emt 0:00:00]} Bd6 {[%emt 0:01:54]} 24. Rf1 {[%emt 0:00:00]} Qe6 {[%emt 0:03:00]} 25. Bf4 {[%emt 0:00:00]} Rad8 {[%emt 0:01:36]} 26. Bxd6 {[%emt 0:00:00]} Rxd6 {[%emt 0:00:05]} 27. Rae1 {[%emt 0:00:00]} Kg7 {[%emt 0:02:31]} 28. h4 {[%emt 0:00:00]} Qg4 {[%emt 0:02:09]} 29. Qe3 {[%emt 0:00:00]} Rde6 {[%emt 0:00:49]} 30. c4 {[%emt 0:00:00]} Qf5 {[%emt 0:00:48]} 31. Qc3 {[%emt 0:00:00]} g5 {[%emt 0:02:42]} 32. hxg5 {[%emt 0:00:00]} Qxg5 {[%emt 0:00:42]} 33. Rh1 {[%emt 0:00:00]} Rg6 {[%emt 0:02:03]} 34. Qc1 {[%emt 0:00:00]} e3 {[%emt 0:00:35]} 35. Rh3 {[%emt 0:00:00]} exf2 {[%emt 0:03:26]} 36. Kxf2 {[%emt 0:00:37]} Qf5+ {[%emt 0:00:51]} 37. Kg2 {[%emt 0:00:48]} Qe4+ {[%emt 0:00:26]} 38. Kh2 {[%emt 0:01:14]} Qxd4 {[%emt 0:00:26]} 39. e3 {[%emt 0:01:46]} Qe5 {[%emt 0:01:26]} 40. Qd2 {[%emt 0:02:40]} h4 {[%emt 0:04:18]} 41. Qf2 {[%emt 0:32:46]} hxg3+ {[%emt 0:31:24]} 42. Rxg3 {[%emt 0:01:21]} Rh8+ {[%emt 0:00:27]} 43. Kg2 {[%emt 0:00:00]} Rhh6 {[%emt 0:00:00]} 44. Qf4 {[%emt 0:00:00]} Qb2+ {[%emt 0:00:00]} 45. Kf3 {[%emt 0:00:00]} Rxg3+ {[%emt 0:00:00]} 46. Qxg3+ {[%emt 0:00:00]} Rg6 {[%emt 0:00:00]} 47. Qh3 {[%emt 0:03:48]} Rf6+ {[%emt 0:12:08]} 48. Kg4 {[%emt 0:00:30]} Qf2 {[%emt 0:00:30]} 1-0

[Event "36th German Seniors-ch-65 2024"]
[Site "Bad Wildungen"]
[Date "2024.08.25"]
[Round "1.13"]
[White "Podat, Vladimir"]
[Black "Kalkmann, Hans"]
[Result "1-0"]
[ECO "D61"]
[WhiteElo "2157"]
[BlackElo "1896"]
[Annotator "RC"]
[PlyCount "71"]
[EventDate "2024.08.22"]
[EventType "swiss"]
[EventCountry "GER"]
[SourceTitle "playchess.com"]
[Source "ChessBase"]
[SourceQuality "1"]
[TimeControl "40/5400+30:1800+30"]

1. d4 {[%emt 0:00:04]} Nf6 {[%emt 0:00:27]} 2. c4 {[%emt 0:00:14]} c6 {[%emt 0:00:48]} 3. Nf3 {[%emt 0:00:25]} d5 {[%emt 0:00:16]} 4. Nc3 {[%emt 0:00:09]} e6 {[%emt 0:00:55]} 5. Bg5 {[%emt 0:00:14]} Be7 {[%emt 0:00:59]} 6. e3 {[%emt 0:01:15]} O-O {[%emt 0:01:29]} 7. Qc2 {[%emt 0:04:51]} Nbd7 {[%emt 0:01:24]} 8. a3 {[%emt 0:02:17]} b6 {[%emt 0:01:51]} 9. cxd5 {[%emt 0:01:33]} cxd5 {[%emt 0:00:31]} 10. Bd3 {[%emt 0:00:13]} h6 {[%emt 0:00:23]} 11. Bh4 {[%emt 0:00:48]} Bb7 {[%emt 0:00:40]} 12. O-O {[%emt 0:00:12]} a6 {[%emt 0:04:10]} 13. Qe2 {[%emt 0:04:09]} b5 {[%emt 0:01:55]} 14. a4 {[%emt 0:00:48]} b4 {[%emt 0:00:29]} 15. Nb1 {[%emt 0:00:05]} a5 {[%emt 0:00:09]} 16. Nbd2 {[%emt 0:00:11]} Qb6 {[%emt 0:01:48]} 17. Bb5 {[%emt 0:08:39]} Bd6 {[%emt 0:02:45]} 18. Nb3 {[%emt 0:01:56]} Rfc8 {[%emt 0:02:48]} 19. Rfc1 {[%emt 0:00:10]} Rxc1+ {[%emt 1:16:13]} 20. Rxc1 {[%emt 1:12:17]} Rc8 {[%emt 0:00:00]} 21. Rxc8+ {[%emt 0:00:00]} Bxc8 {[%emt 0:00:00]} 22. Bg3 {[%emt 0:00:00]} Bxg3 {[%emt 0:01:30]} 23. hxg3 {[%emt 0:01:30]} Qc7 {[%emt 0:00:00]} 24. Ne1 {[%emt 0:00:00]} Ne4 {[%emt 0:00:00]} 25. Qc2 {[%emt 0:00:00]} Qd8 {[%emt 0:00:00]} 26. Nxa5 {[%emt 0:00:00]} Ba6 {[%emt 0:00:00]} 27. Nc6 {[%emt 0:00:00]} Qb6 {[%emt 0:00:00]} 28. Bxa6 {[%emt 0:00:00]} Qxa6 {[%emt 0:00:00]} 29. Nxb4 {[%emt 0:00:00]} Qd6 {[%emt 0:00:00]} 30. Ned3 {[%emt 0:00:00]} Ndf6 {[%emt 0:00:00]} 31. Nc6 {[%emt 0:00:00]} Ng4 {[%emt 0:00:00]} 32. Nce5 {[%emt 0:00:00]} Nxe5 {[%emt 0:00:00]} 33. dxe5 {[%emt 0:00:00]} Qb6 {[%emt 0:00:00]} 34. b4 {[%emt 0:00:00]} d4 {[%emt 0:00:00]} 35. Qc8+ {[%emt 0:00:00]} Kh7 {[%emt 0:00:00]} 36. Qc4 {[%emt 0:00:00]} 1-0

[Event "36th German Seniors-ch-65 2024"]
[Site "Bad Wildungen"]
[Date "2024.08.25"]
[Round "1.14"]
[White "Stuhlmann, Alexander"]
[Black "Gruzmann, Boris"]
[Result "0-1"]
[ECO "C54"]
[WhiteElo "1892"]
[BlackElo "2167"]
[Annotator "RC"]
[PlyCount "56"]
[EventDate "2024.08.22"]
[EventType "swiss"]
[EventCountry "GER"]
[SourceTitle "playchess.com"]
[Source "ChessBase"]
[SourceQuality "1"]
[TimeControl "40/5400+30:1800+30"]

1. e4 {[%emt 0:00:06]} e5 {[%emt 0:00:14]} 2. Nf3 {[%emt 0:00:14]} Nc6 {[%emt 0:00:10]} 3. Bc4 {[%emt 0:00:48]} Nf6 {[%emt 0:00:14]} 4. d3 {[%emt 0:02:08]} Bc5 {[%emt 0:00:14]} 5. c3 {[%emt 0:00:29]} d6 {[%emt 0:03:16]} 6. Nbd2 {[%emt 0:01:59]} O-O {[%emt 0:00:36]} 7. b4 {[%emt 0:04:51]} Bb6 {[%emt 0:00:12]} 8. h3 {[%emt 0:02:10]} a5 {[%emt 0:03:49]} 9. b5 {[%emt 0:01:47]} Ne7 {[%emt 0:00:09]} 10. Nf1 {[%emt 0:03:33]} c6 {[%emt 0:05:19]} 11. Be3 {[%emt 0:02:11]} d5 {[%emt 0:01:43]} 12. exd5 {[%emt 0:02:30]} cxd5 {[%emt 1:20:34]} 13. Bb3 {[%emt 1:14:14]} Ng6 {[%emt 0:00:30]} 14. Bg5 {[%emt 0:00:00]} Be6 {[%emt 0:00:30]} 15. Ne3 {[%emt 0:01:00]} Qc7 {[%emt 0:00:30]} 16. Rc1 {[%emt 0:00:30]} e4 {[%emt 0:00:30]} 17. Nd4 {[%emt 0:00:30]} Nf4 {[%emt 0:00:30]} 18. Bxf4 {[%emt 0:00:00]} Qxf4 19. g3 {[%emt 0:01:00]} Qe5 {[%emt 0:01:00]} 20. Nxe6 {[%emt 0:00:30]} fxe6 {[%emt 0:00:30]} 21. d4 {[%emt 0:00:30]} Qd6 {[%emt 0:00:30]} 22. O-O {[%emt 0:00:30]} e5 {[%emt 0:00:30]} 23. dxe5 {[%emt 0:00:30]} Qxe5 {[%emt 0:00:30]} 24. Nxd5 {[%emt 0:00:30]} Qxg3+ {[%emt 0:00:30]} 25. Kh1 {[%emt 0:00:30]} Qxh3+ {[%emt 0:00:00]} 26. Kg1 {[%emt 0:00:30]} Kh8 {[%emt 0:01:00]} 27. Nf4 {[%emt 0:00:30]} Qg3+ {[%emt 0:00:30]} 28. Ng2 {[%emt 0:00:30]} Ng4 {[%emt 0:00:30]} 0-1

[Event "36th German Seniors-ch-65 2024"]
[Site "Bad Wildungen"]
[Date "2024.08.25"]
[Round "1.15"]
[White "Babrikowski, Peter"]
[Black "Zimmermann, Manfred"]
[Result "1-0"]
[ECO "C02"]
[WhiteElo "2153"]
[BlackElo "1892"]
[Annotator "RC"]
[PlyCount "58"]
[EventDate "2024.08.22"]
[EventType "swiss"]
[EventCountry "GER"]
[SourceTitle "playchess.com"]
[Source "ChessBase"]
[SourceQuality "1"]
[TimeControl "40/5400+30:1800+30"]

1. e4 {[%emt 0:00:18]} e6 {[%emt 0:00:40]} 2. d4 {[%emt 0:00:21]} d5 {[%emt 0:00:13]} 3. e5 {[%emt 0:01:44]} c5 {[%emt 0:00:15]} 4. c3 {[%emt 0:00:05]} Nc6 {[%emt 0:00:28]} 5. Nf3 {[%emt 0:00:10]} Nge7 {[%emt 0:08:39]} 6. Bd3 {[%emt 0:03:15]} Nf5 {[%emt 0:11:03]} 7. dxc5 {[%emt 0:04:17]} Bxc5 {[%emt 0:04:59]} 8. O-O {[%emt 0:04:34]} a6 {[%emt 0:02:55]} 9. Bg5 {[%emt 0:02:22]} Rb8 {[%emt 0:07:28]} 10. Be7 {[%emt 0:01:18]} Nfxe7 {[%emt 0:02:27]} 11. Nbd2 {[%emt 0:01:41]} Ng6 {[%emt 0:00:47]} 12. Re1 {[%emt 0:00:42]} Qc7 {[%emt 0:03:52]} 13. Bc2 {[%emt 0:05:05]} h6 {[%emt 0:13:45]} 14. Nf1 {[%emt 0:08:22]} O-O {[%emt 0:02:59]} 15. Qd3 {[%emt 0:00:19]} Bd7 {[%emt 0:03:51]} 16. h4 {[%emt 0:15:46]} Rfd8 {[%emt 0:01:56]} 17. Ng3 {[%emt 0:04:19]} Nf8 {[%emt 0:04:04]} 18. h5 {[%emt 0:04:52]} Ne7 {[%emt 0:00:11]} 19. Nd4 {[%emt 0:00:11]} Bd6 {[%emt 0:13:07]} 20. Qd2 {[%emt 0:02:27]} Qc4 {[%emt 0:03:22]} 21. Re3 {[%emt 0:00:30]} Nc6 {[%emt 0:00:30]} 22. Bb3 {[%emt 0:04:02]} Qc5 {[%emt 0:02:56]} 23. Nge2 {[%emt 0:00:31]} Ra8 {[%emt 0:04:17]} 24. Rg3 {[%emt 0:06:50]} Bb8 {[%emt 0:00:37]} 25. Qf4 {[%emt 0:00:13]} Nh7 {[%emt 0:02:38]} 26. Bc2 {[%emt 0:04:58]} Kh8 {[%emt 0:01:33]} 27. Rd1 {[%emt 0:04:45]} Rg8 {[%emt 0:02:05]} 28. Nxc6 {[%emt 0:01:32]} Bxc6 {[%emt 0:00:31]} 29. Qd4 {[%emt 0:00:41]} Qe7 {[%emt 0:01:28]} 1-0

[Event "36th German Seniors-ch-65 2024"]
[Site "Bad Wildungen"]
[Date "2024.08.25"]
[Round "1.16"]
[White "Klein, Gernot"]
[Black "Kaeding, Rainer"]
[Result "0-1"]
[ECO "B48"]
[WhiteElo "1891"]
[BlackElo "2116"]
[Annotator "RC"]
[PlyCount "86"]
[EventDate "2024.08.22"]
[EventType "swiss"]
[EventCountry "GER"]
[SourceTitle "playchess.com"]
[Source "ChessBase"]
[SourceQuality "1"]
[TimeControl "40/5400+30:1800+30"]

1. e4 {[%emt 0:00:23]} c5 {[%emt 0:00:08]} 2. Nf3 {[%emt 0:00:13]} e6 {[%emt 0:00:13]} 3. d4 {[%emt 0:00:13]} cxd4 {[%emt 0:00:11]} 4. Nxd4 {[%emt 0:00:06]} Nc6 {[%emt 0:00:38]} 5. Nc3 {[%emt 0:00:13]} Qc7 {[%emt 0:00:22]} 6. Be3 {[%emt 0:00:18]} a6 {[%emt 0:00:30]} 7. Qd2 {[%emt 0:00:13]} Nf6 {[%emt 0:00:50]} 8. f3 {[%emt 0:00:12]} b5 {[%emt 0:01:54]} 9. O-O-O {[%emt 0:02:11]} Be7 {[%emt 0:02:09]} 10. g4 {[%emt 0:00:12]} b4 {[%emt 0:05:01]} 11. Nce2 {[%emt 0:01:38]} Bb7 {[%emt 0:06:48]} 12. g5 {[%emt 0:04:19]} Nh5 {[%emt 0:00:38]} 13. Nxc6 {[%emt 0:03:30]} dxc6 {[%emt 0:02:23]} 14. Kb1 {[%emt 0:07:30]} Rd8 {[%emt 0:01:56]} 15. Qe1 {[%emt 0:03:01]} Rxd1+ {[%emt 0:01:54]} 16. Qxd1 {[%emt 0:00:07]} O-O {[%emt 0:01:05]} 17. Bh3 {[%emt 0:02:43]} e5 {[%emt 0:05:29]} 18. Qc1 {[%emt 0:08:22]} g6 {[%emt 0:03:49]} 19. Bg4 {[%emt 0:01:22]} Ng7 {[%emt 0:01:18]} 20. h4 {[%emt 0:00:12]} Bc8 {[%emt 0:01:27]} 21. Qg1 {[%emt 0:05:42]} Bxg4 {[%emt 0:01:24]} 22. fxg4 {[%emt 0:01:15]} Ne6 {[%emt 0:00:27]} 23. Qh2 {[%emt 0:08:15]} Bc5 {[%emt 0:02:26]} 24. Bc1 {[%emt 0:01:34]} a5 {[%emt 0:03:59]} 25. h5 {[%emt 0:00:29]} a4 {[%emt 0:01:04]} 26. Rd1 {[%emt 0:09:05]} Rb8 {[%emt 0:05:29]} 27. Rd3 {[%emt 0:07:20]} Be7 {[%emt 0:03:19]} 28. Qh4 {[%emt 0:03:56]} Nc5 {[%emt 0:06:09]} 29. Rh3 {[%emt 0:06:12]} Bf8 {[%emt 0:00:56]} 30. Re3 {[%emt 0:01:32]} Rd8 {[%emt 0:05:27]} 31. Qh1 {[%emt 0:00:54]} Qd7 {[%emt 0:01:13]} 32. Qh2 {[%emt 0:10:23]} Qe6 {[%emt 0:02:10]} 33. Qg1 {[%emt 0:03:39]} b3 {[%emt 0:03:10]} 34. cxb3 {[%emt 0:03:03]} axb3 {[%emt 0:00:14]} 35. a3 {[%emt 0:01:00]} Qc4 {[%emt 0:02:52]} 36. Nc3 {[%emt 0:01:11]} Nd3 {[%emt 0:03:33]} 37. Rf3 {[%emt 0:02:25]} Bxa3 {[%emt 0:03:13]} 38. Qa7 {[%emt 0:02:25]} Bb4 {[%emt 0:03:23]} 39. Qc7 {[%emt 0:01:39]} Rf8 {[%emt 0:03:36]} 40. Bd2 {[%emt 0:00:49]} Bxc3 {[%emt 0:01:28]} 41. bxc3 {[%emt 0:05:00]} Qxe4 {[%emt 0:00:26]} 42. Re3 {[%emt 0:03:42]} Qh1+ {[%emt 0:00:17]} 43. Be1 {[%emt 0:00:05]} Qg2 {[%emt 0:03:24]} 0-1